[Event "Titled Tuesday Blitz April 05 Early 2022"]
[White "Gontcharov, Vladislav"]
[Black "Barbashin, Igor"]
[WhiteFideId "4123492"]
[BlackFideId "4155718"]
[WhiteElo "2488"]
[BlackElo "2138"]
[Result "1-0"]
[Round "06"]
[TimeControl "180+1"]
[Date "2022.04.05"]
[WhiteClock "0:00:11"]
[BlackClock "0:00:09"]

1. e4 {[%clk 0:03:00]}  d5 {[%clk 0:02:58]} 2. exd5 {[%clk 0:02:58]}  Nf6 {[%clk 0:02:57]} 3. d4 {[%clk 0:02:55]}  Nxd5 {[%clk 0:02:56]} 4. c4 {[%clk 0:02:54]}  Nb6 {[%clk 0:02:56]} 5. Nc3 {[%clk 0:02:53]}  e5 {[%clk 0:02:49]} 6. Nf3 {[%clk 0:02:43]}  exd4 {[%clk 0:02:39]} 7. Nxd4 {[%clk 0:02:41]}  Bb4 {[%clk 0:02:33]} 8. Qe2+ {[%clk 0:02:35]}  Qe7 {[%clk 0:01:55]} 9. Qxe7+ {[%clk 0:02:33]}  Kxe7 {[%clk 0:01:49]} 10. Nb5 {[%clk 0:02:20]}  Na6 {[%clk 0:01:37]} 11. Bd2 {[%clk 0:02:10]}  c6 {[%clk 0:01:22]} 12. Nd4 {[%clk 0:01:54]}  Rd8 {[%clk 0:01:16]} 13. Nc2 {[%clk 0:01:53]}  Bc5 {[%clk 0:01:12]} 14. Ne3 {[%clk 0:01:28]}  Nb4 {[%clk 0:00:56]} 15. O-O-O {[%clk 0:01:09]}  Nd3+ {[%clk 0:00:46]} 16. Bxd3 {[%clk 0:01:08]}  Rxd3 {[%clk 0:00:46]} 17. Rhe1 {[%clk 0:01:07]}  Rd7 {[%clk 0:00:47]} 18. Ne4 {[%clk 0:00:52]}  Bxe3 {[%clk 0:00:40]} 19. Bxe3 {[%clk 0:00:48]}  Rxd1+ {[%clk 0:00:39]} 20. Kxd1 {[%clk 0:00:48]}  Nxc4 {[%clk 0:00:32]} 21. Bc5+ {[%clk 0:00:47]}  Kd8 {[%clk 0:00:29]} 22. b3 {[%clk 0:00:43]}  Nb6 {[%clk 0:00:28]} 23. Nd6 {[%clk 0:00:42]}  Be6 {[%clk 0:00:28]} 24. Nxb7+ {[%clk 0:00:39]}  Kc7 {[%clk 0:00:21]} 25. Na5 {[%clk 0:00:39]}  Rd8+ {[%clk 0:00:19]} 26. Kc1 {[%clk 0:00:39]}  Rd5 {[%clk 0:00:18]} 27. Bb4 {[%clk 0:00:39]}  Rf5 {[%clk 0:00:15]} 28. f3 {[%clk 0:00:36]}  c5 {[%clk 0:00:15]} 29. Bc3 {[%clk 0:00:33]}  c4 {[%clk 0:00:12]} 30. b4 {[%clk 0:00:29]}  f6 {[%clk 0:00:10]} 31. Kc2 {[%clk 0:00:21]}  Kd7 {[%clk 0:00:05]} 32. Nb7 {[%clk 0:00:20]}  Bf7 {[%clk 0:00:02]} 33. Nc5+ {[%clk 0:00:20]}  Kd8 {[%clk 0:00:01]} 34. Ne4 {[%clk 0:00:17]}  Rd5 {[%clk 0:00:01]} 35. g4 {[%clk 0:00:12]}  Bg6 {[%clk 0:00:02]} 36. Kb2 {[%clk 0:00:11]}  Rd3 {[%clk 0:00:03]} 37. Rf1 {[%clk 0:00:10]}  Rxf3 {[%clk 0:00:03]} 38. Rxf3 {[%clk 0:00:09]}  Bxe4 {[%clk 0:00:04]} 39. Re3 {[%clk 0:00:10]}  Bc6 {[%clk 0:00:05]} 40. Bd4 {[%clk 0:00:10]}  Kc7 {[%clk 0:00:06]} 41. Bxb6+ {[%clk 0:00:10]}  Kxb6 {[%clk 0:00:07]} 42. Re7 {[%clk 0:00:10]}  Kb5 {[%clk 0:00:08]} 43. Kc3 {[%clk 0:00:10]}  Bd5 {[%clk 0:00:09]} 44. Rxg7 {[%clk 0:00:10]}  Kc6 {[%clk 0:00:09]} 45. Rxh7 {[%clk 0:00:11]}  a5 {[%clk 0:00:09]} 46. Rh6 {[%clk 0:00:11]} 1-0


[Site "https://www.chess.com"]

[Event "Titled Tuesday Blitz April 05 Early 2022"]
[White "Goryachkina, Aleksandra"]
[Black "Jaskolka, Tomasz"]
[WhiteFideId "4147103"]
[BlackFideId "1170791"]
[WhiteElo "2426"]
[BlackElo "2073"]
[Result "1-0"]
[Round "06"]
[TimeControl "180+1"]
[Date "2022.04.05"]
[WhiteClock "0:00:36"]
[BlackClock "0:00:16"]

1. e4 {[%clk 0:03:00]}  e6 {[%clk 0:03:00]} 2. d4 {[%clk 0:02:59]}  d5 {[%clk 0:03:00]} 3. Nd2 {[%clk 0:02:59]}  Nf6 {[%clk 0:03:00]} 4. e5 {[%clk 0:02:58]}  Nfd7 {[%clk 0:03:01]} 5. Bd3 {[%clk 0:02:58]}  c5 {[%clk 0:03:01]} 6. c3 {[%clk 0:02:59]}  Nc6 {[%clk 0:03:02]} 7. Ne2 {[%clk 0:02:59]}  cxd4 {[%clk 0:03:03]} 8. cxd4 {[%clk 0:02:58]}  f6 {[%clk 0:03:03]} 9. exf6 {[%clk 0:02:55]}  Nxf6 {[%clk 0:03:04]} 10. Nf3 {[%clk 0:02:54]}  Bd6 {[%clk 0:03:04]} 11. O-O {[%clk 0:02:52]}  Qc7 {[%clk 0:03:04]} 12. Bg5 {[%clk 0:02:43]}  O-O {[%clk 0:03:04]} 13. Bh4 {[%clk 0:02:31]}  Nh5 {[%clk 0:03:03]} 14. Rc1 {[%clk 0:02:17]}  Nf4 {[%clk 0:02:33]} 15. Nxf4 {[%clk 0:02:09]}  Bxf4 {[%clk 0:02:34]} 16. Bg3 {[%clk 0:02:06]}  Bxg3 {[%clk 0:02:32]} 17. hxg3 {[%clk 0:02:03]}  g6 {[%clk 0:02:25]} 18. Bb5 {[%clk 0:01:57]}  Qd6 {[%clk 0:02:03]} 19. Bxc6 {[%clk 0:01:54]}  bxc6 {[%clk 0:02:04]} 20. Ne5 {[%clk 0:01:50]}  Bb7 {[%clk 0:01:56]} 21. Qd2 {[%clk 0:01:49]}  Rac8 {[%clk 0:01:51]} 22. Rc5 {[%clk 0:01:41]}  Rc7 {[%clk 0:01:41]} 23. Re1 {[%clk 0:01:35]}  Kg7 {[%clk 0:01:38]} 24. a3 {[%clk 0:01:33]}  Re7 {[%clk 0:01:26]} 25. Qb4 {[%clk 0:01:29]}  Ba8 {[%clk 0:01:18]} 26. Rec1 {[%clk 0:01:17]}  Rb8 {[%clk 0:01:15]} 27. Qd2 {[%clk 0:01:15]}  Rc7 {[%clk 0:01:09]} 28. b4 {[%clk 0:01:09]}  a6 {[%clk 0:01:06]} 29. Qc3 {[%clk 0:01:07]}  Rbc8 {[%clk 0:00:51]} 30. a4 {[%clk 0:01:04]}  Rb8 {[%clk 0:00:35]} 31. b5 {[%clk 0:01:01]}  axb5 {[%clk 0:00:36]} 32. axb5 {[%clk 0:01:01]}  Rb6 {[%clk 0:00:24]} 33. bxc6 {[%clk 0:00:57]}  h5 {[%clk 0:00:18]} 34. Ra5 {[%clk 0:00:40]}  Rbxc6 {[%clk 0:00:14]} 35. Nxc6 {[%clk 0:00:38]}  Rxc6 {[%clk 0:00:14]} 36. Rc5 {[%clk 0:00:35]}  Rxc5 {[%clk 0:00:14]} 37. dxc5+ {[%clk 0:00:35]}  d4 {[%clk 0:00:14]} 38. cxd6 {[%clk 0:00:36]}  dxc3 {[%clk 0:00:15]} 39. d7 {[%clk 0:00:36]}  c2 {[%clk 0:00:16]} 40. d8=Q {[%clk 0:00:36]} 1-0


[Site "https://www.chess.com"]

[Event "Titled Tuesday Blitz April 05 Early 2022"]
[White "Hansen, Eric"]
[Black "Lauridsen, Jesper Morch"]
[WhiteFideId "2606771"]
[BlackFideId "1401890"]
[WhiteElo "2568"]
[BlackElo "2260"]
[Result "1-0"]
[Round "06"]
[TimeControl "180+1"]
[Date "2022.04.05"]
[WhiteClock "0:02:19"]
[BlackClock "0:00:12"]

1. e4 {[%clk 0:02:54]}  c5 {[%clk 0:02:59]} 2. Nf3 {[%clk 0:02:54]}  Nc6 {[%clk 0:02:58]} 3. Bb5 {[%clk 0:02:54]}  d6 {[%clk 0:02:57]} 4. O-O {[%clk 0:02:54]}  Bd7 {[%clk 0:02:57]} 5. Re1 {[%clk 0:02:53]}  a6 {[%clk 0:02:56]} 6. Bxc6 {[%clk 0:02:53]}  Bxc6 {[%clk 0:02:56]} 7. d4 {[%clk 0:02:54]}  cxd4 {[%clk 0:02:54]} 8. Nxd4 {[%clk 0:02:55]}  Nf6 {[%clk 0:02:53]} 9. f3 {[%clk 0:02:55]}  g6 {[%clk 0:02:52]} 10. c4 {[%clk 0:02:53]}  Bg7 {[%clk 0:02:52]} 11. Be3 {[%clk 0:02:54]}  O-O {[%clk 0:02:51]} 12. Nc3 {[%clk 0:02:54]}  Rc8 {[%clk 0:02:51]} 13. Rc1 {[%clk 0:02:52]}  Nd7 {[%clk 0:02:49]} 14. b3 {[%clk 0:02:52]}  Qa5 {[%clk 0:02:43]} 15. Qd2 {[%clk 0:02:52]}  Rfe8 {[%clk 0:02:33]} 16. Red1 {[%clk 0:02:52]}  b5 {[%clk 0:02:25]} 17. cxb5 {[%clk 0:02:46]}  axb5 {[%clk 0:02:20]} 18. Ncxb5 {[%clk 0:02:43]}  Qxd2 {[%clk 0:02:00]} 19. Bxd2 {[%clk 0:02:41]}  Bxb5 {[%clk 0:01:21]} 20. Nxb5 {[%clk 0:02:41]}  Nc5 {[%clk 0:01:20]} 21. Be3 {[%clk 0:02:41]}  Rb8 {[%clk 0:01:05]} 22. Nc7 {[%clk 0:02:40]}  Rec8 {[%clk 0:01:04]} 23. Nd5 {[%clk 0:02:38]}  Kf8 {[%clk 0:00:58]} 24. Kf1 {[%clk 0:02:38]}  Be5 {[%clk 0:00:48]} 25. h3 {[%clk 0:02:37]}  Bb2 {[%clk 0:00:46]} 26. Rc4 {[%clk 0:02:37]}  Ne6 {[%clk 0:00:40]} 27. Rxc8+ {[%clk 0:02:30]}  Rxc8 {[%clk 0:00:40]} 28. Ke2 {[%clk 0:02:31]}  Be5 {[%clk 0:00:34]} 29. f4 {[%clk 0:02:27]}  Bg7 {[%clk 0:00:29]} 30. a4 {[%clk 0:02:27]}  Rb8 {[%clk 0:00:26]} 31. Rd3 {[%clk 0:02:25]}  h6 {[%clk 0:00:22]} 32. g3 {[%clk 0:02:20]}  g5 {[%clk 0:00:22]} 33. Kf3 {[%clk 0:02:19]}  gxf4 {[%clk 0:00:21]} 34. gxf4 {[%clk 0:02:20]}  Nc5 {[%clk 0:00:18]} 35. Bxc5 {[%clk 0:02:19]}  dxc5 {[%clk 0:00:18]} 36. e5 {[%clk 0:02:20]}  e6 {[%clk 0:00:17]} 37. Ne3 {[%clk 0:02:19]}  Rb4 {[%clk 0:00:16]} 38. Nc4 {[%clk 0:02:20]}  h5 {[%clk 0:00:15]} 39. a5 {[%clk 0:02:18]}  Bh6 {[%clk 0:00:15]} 40. a6 {[%clk 0:02:18]}  Rb8 {[%clk 0:00:14]} 41. a7 {[%clk 0:02:18]}  Ra8 {[%clk 0:00:14]} 42. Rd7 {[%clk 0:02:19]}  Ke8 {[%clk 0:00:12]} 43. Rb7 {[%clk 0:02:19]} 1-0


[Site "https://www.chess.com"]

[Event "Titled Tuesday Blitz April 05 Early 2022"]
[White "Ilyasli, Ughur"]
[Black "Dukic, Zachary"]
[WhiteFideId "13416197"]
[BlackFideId "2617188"]
[WhiteElo "2045"]
[BlackElo "2086"]
[Result "1-0"]
[Round "06"]
[TimeControl "180+1"]
[Date "2022.04.05"]
[WhiteClock "0:01:09"]
[BlackClock "0:00:13"]

1. d4 {[%clk 0:03:00]}  Nf6 {[%clk 0:02:59]} 2. c4 {[%clk 0:03:01]}  g6 {[%clk 0:02:59]} 3. Nc3 {[%clk 0:03:02]}  Bg7 {[%clk 0:03:00]} 4. e4 {[%clk 0:03:01]}  d6 {[%clk 0:03:00]} 5. Nge2 {[%clk 0:03:02]}  O-O {[%clk 0:03:00]} 6. Ng3 {[%clk 0:03:02]}  e5 {[%clk 0:03:01]} 7. d5 {[%clk 0:03:02]}  a5 {[%clk 0:03:02]} 8. Be2 {[%clk 0:03:00]}  Na6 {[%clk 0:03:01]} 9. h4 {[%clk 0:03:00]}  h5 {[%clk 0:03:01]} 10. Bg5 {[%clk 0:03:01]}  Qe8 {[%clk 0:03:01]} 11. Qd2 {[%clk 0:02:39]}  Bd7 {[%clk 0:02:32]} 12. O-O-O {[%clk 0:02:21]}  a4 {[%clk 0:02:29]} 13. Bxf6 {[%clk 0:02:14]}  Bxf6 {[%clk 0:02:29]} 14. Bxh5 {[%clk 0:02:14]}  Nc5 {[%clk 0:02:00]} 15. Be2 {[%clk 0:01:49]}  Ra6 {[%clk 0:01:37]} 16. Kb1 {[%clk 0:01:41]}  Qa8 {[%clk 0:01:19]} 17. h5 {[%clk 0:01:38]}  Nb3 {[%clk 0:01:17]} 18. Qh6 {[%clk 0:01:24]}  Bg7 {[%clk 0:01:17]} 19. Qg5 {[%clk 0:01:22]}  Nd4 {[%clk 0:00:54]} 20. h6 {[%clk 0:01:20]}  a3 {[%clk 0:00:14]} 21. hxg7 {[%clk 0:01:13]}  Kxg7 {[%clk 0:00:13]} 22. Nh5+ {[%clk 0:01:09]} 1-0


[Site "https://www.chess.com"]

[Event "Titled Tuesday Blitz April 05 Early 2022"]
[White "Iskusnyh, Sergei"]
[Black "Stanisz, Patryk"]
[WhiteFideId "4120027"]
[BlackFideId "1123106"]
[WhiteElo "2492"]
[BlackElo "1833"]
[Result "0-1"]
[Round "06"]
[TimeControl "180+1"]
[Date "2022.04.05"]
[WhiteClock "0:00:01"]
[BlackClock "0:00:03"]

1. d4 {[%clk 0:02:58]}  d5 {[%clk 0:02:58]} 2. c4 {[%clk 0:02:57]}  c6 {[%clk 0:02:58]} 3. Nf3 {[%clk 0:02:56]}  Nf6 {[%clk 0:02:58]} 4. e3 {[%clk 0:02:56]}  e6 {[%clk 0:02:59]} 5. Bd3 {[%clk 0:02:54]}  Nbd7 {[%clk 0:02:59]} 6. b3 {[%clk 0:02:54]}  Bd6 {[%clk 0:02:59]} 7. Bb2 {[%clk 0:02:53]}  Qe7 {[%clk 0:03:00]} 8. Ne5 {[%clk 0:02:51]}  Bb4+ {[%clk 0:02:56]} 9. Nd2 {[%clk 0:02:35]}  Nxe5 {[%clk 0:02:55]} 10. dxe5 {[%clk 0:02:30]}  Nd7 {[%clk 0:02:54]} 11. O-O {[%clk 0:02:27]}  O-O {[%clk 0:02:10]} 12. f4 {[%clk 0:02:22]}  f5 {[%clk 0:02:05]} 13. Nf3 {[%clk 0:02:15]}  Nc5 {[%clk 0:02:00]} 14. a3 {[%clk 0:01:58]}  Nxd3 {[%clk 0:01:56]} 15. Qxd3 {[%clk 0:01:57]}  Bc5 {[%clk 0:01:53]} 16. cxd5 {[%clk 0:01:24]}  cxd5 {[%clk 0:01:48]} 17. b4 {[%clk 0:01:22]}  Bb6 {[%clk 0:01:45]} 18. Bd4 {[%clk 0:01:22]}  Bd7 {[%clk 0:01:33]} 19. Rfc1 {[%clk 0:01:20]}  Rfc8 {[%clk 0:01:28]} 20. h3 {[%clk 0:01:18]}  Qe8 {[%clk 0:01:26]} 21. Bxb6 {[%clk 0:01:15]}  axb6 {[%clk 0:01:27]} 22. Nd4 {[%clk 0:01:15]}  b5 {[%clk 0:01:22]} 23. Rc5 {[%clk 0:01:02]}  b6 {[%clk 0:01:20]} 24. Rxb5 {[%clk 0:00:47]}  Bxb5 {[%clk 0:01:09]} 25. Nxb5 {[%clk 0:00:47]}  Qc6 {[%clk 0:01:03]} 26. Nd4 {[%clk 0:00:45]}  Qc3 {[%clk 0:00:59]} 27. Qxc3 {[%clk 0:00:28]}  Rxc3 {[%clk 0:01:00]} 28. a4 {[%clk 0:00:26]}  Kf7 {[%clk 0:00:50]} 29. a5 {[%clk 0:00:23]}  bxa5 {[%clk 0:00:49]} 30. bxa5 {[%clk 0:00:23]}  Rxe3 {[%clk 0:00:50]} 31. a6 {[%clk 0:00:22]}  Re4 {[%clk 0:00:42]} 32. Nb5 {[%clk 0:00:21]}  Rb4 {[%clk 0:00:34]} 33. Nd6+ {[%clk 0:00:20]}  Ke7 {[%clk 0:00:27]} 34. a7 {[%clk 0:00:18]}  Rxf4 {[%clk 0:00:12]} 35. Nb5 {[%clk 0:00:13]}  Rc4 {[%clk 0:00:10]} 36. Ra6 {[%clk 0:00:12]}  Rc5 {[%clk 0:00:10]} 37. Nd6 {[%clk 0:00:12]}  Rc7 {[%clk 0:00:08]} 38. Nb5 {[%clk 0:00:10]}  Rb7 {[%clk 0:00:09]} 39. Nd4 {[%clk 0:00:10]}  Raxa7 {[%clk 0:00:09]} 40. Rxe6+ {[%clk 0:00:10]}  Kf7 {[%clk 0:00:09]} 41. Rd6 {[%clk 0:00:09]}  Rd7 {[%clk 0:00:08]} 42. Rc6 {[%clk 0:00:08]}  Rdc7 {[%clk 0:00:04]} 43. e6+ {[%clk 0:00:05]}  Kf6 {[%clk 0:00:03]} 44. Rd6 {[%clk 0:00:05]}  Ke5 {[%clk 0:00:04]} 45. Nb5 {[%clk 0:00:03]}  Rc1+ {[%clk 0:00:03]} 46. Kh2 {[%clk 0:00:03]}  Re7 {[%clk 0:00:03]} 47. Ra6 {[%clk 0:00:02]}  Rxe6 {[%clk 0:00:03]} 48. Ra2 {[%clk 0:00:01]}  Kf6 {[%clk 0:00:03]} 0-1


[Site "https://www.chess.com"]

[Event "Titled Tuesday Blitz April 05 Early 2022"]
[White "Kalogridis, Antonios"]
[Black "Papp, Levente"]
[WhiteFideId "25833901"]
[BlackFideId "751243"]
[WhiteElo "1596"]
[BlackElo "2308"]
[Result "0-1"]
[Round "06"]
[TimeControl "180+1"]
[Date "2022.04.05"]
[WhiteClock "0:00:18"]
[BlackClock "0:00:06"]

1. d4 {[%clk 0:03:00]}  Nf6 {[%clk 0:02:59]} 2. c4 {[%clk 0:03:00]}  e6 {[%clk 0:03:00]} 3. Nf3 {[%clk 0:03:01]}  c5 {[%clk 0:03:00]} 4. d5 {[%clk 0:03:00]}  b5 {[%clk 0:03:00]} 5. dxe6 {[%clk 0:02:58]}  fxe6 {[%clk 0:03:00]} 6. cxb5 {[%clk 0:02:59]}  d5 {[%clk 0:03:00]} 7. Bg5 {[%clk 0:02:58]}  Nbd7 {[%clk 0:02:46]} 8. e4 {[%clk 0:02:53]}  dxe4 {[%clk 0:02:28]} 9. Nfd2 {[%clk 0:02:52]}  h6 {[%clk 0:02:19]} 10. Be3 {[%clk 0:02:50]}  Ne5 {[%clk 0:02:16]} 11. Nc3 {[%clk 0:02:43]}  Bb7 {[%clk 0:02:15]} 12. Be2 {[%clk 0:02:35]}  Nd3+ {[%clk 0:02:15]} 13. Bxd3 {[%clk 0:02:36]}  Qxd3 {[%clk 0:01:34]} 14. Qb3 {[%clk 0:02:35]}  Nd5 {[%clk 0:01:19]} 15. O-O-O {[%clk 0:02:17]}  Nxe3 {[%clk 0:01:03]} 16. Ndxe4 {[%clk 0:02:07]}  Qc4 {[%clk 0:00:46]} 17. fxe3 {[%clk 0:01:59]}  Qxb3 {[%clk 0:00:46]} 18. axb3 {[%clk 0:01:59]}  Rd8 {[%clk 0:00:42]} 19. Rxd8+ {[%clk 0:01:45]}  Kxd8 {[%clk 0:00:42]} 20. Rd1+ {[%clk 0:01:45]}  Kc7 {[%clk 0:00:42]} 21. g3 {[%clk 0:01:43]}  Be7 {[%clk 0:00:41]} 22. Nd2 {[%clk 0:01:43]}  Bg5 {[%clk 0:00:38]} 23. Nc4 {[%clk 0:01:43]}  Rf8 {[%clk 0:00:36]} 24. Rd2 {[%clk 0:01:33]}  Rf3 {[%clk 0:00:31]} 25. b6+ {[%clk 0:01:22]}  axb6 {[%clk 0:00:29]} 26. Nb5+ {[%clk 0:01:22]}  Kc8 {[%clk 0:00:23]} 27. Nxb6+ {[%clk 0:01:19]}  Kb8 {[%clk 0:00:21]} 28. Rd8+ {[%clk 0:01:19]}  Bc8 {[%clk 0:00:20]} 29. Nxc8 {[%clk 0:01:10]}  Bxd8 {[%clk 0:00:20]} 30. Ncd6 {[%clk 0:01:01]}  Rxe3 {[%clk 0:00:20]} 31. Kd2 {[%clk 0:00:58]}  Rxb3 {[%clk 0:00:20]} 32. Kc2 {[%clk 0:00:57]}  Rf3 {[%clk 0:00:20]} 33. Nc4 {[%clk 0:00:56]}  Rf2+ {[%clk 0:00:20]} 34. Kd3 {[%clk 0:00:57]}  Bf6 {[%clk 0:00:20]} 35. Nb6 {[%clk 0:00:55]}  Rxb2 {[%clk 0:00:19]} 36. Nd7+ {[%clk 0:00:54]}  Kc8 {[%clk 0:00:19]} 37. Nb6+ {[%clk 0:00:47]}  Kd8 {[%clk 0:00:16]} 38. Kc4 {[%clk 0:00:45]}  Rb4+ {[%clk 0:00:15]} 39. Kxc5 {[%clk 0:00:45]}  Be7+ {[%clk 0:00:15]} 40. Kc6 {[%clk 0:00:45]}  Ke8 {[%clk 0:00:14]} 41. Nc7+ {[%clk 0:00:43]}  Kf7 {[%clk 0:00:14]} 42. Nd7 {[%clk 0:00:43]}  Rc4+ {[%clk 0:00:14]} 43. Kb6 {[%clk 0:00:42]}  Rc2 {[%clk 0:00:14]} 44. Ne5+ {[%clk 0:00:41]}  Kg8 {[%clk 0:00:14]} 45. Ng6 {[%clk 0:00:31]}  Bf6 {[%clk 0:00:11]} 46. h4 {[%clk 0:00:28]}  Kf7 {[%clk 0:00:10]} 47. Nh8+ {[%clk 0:00:23]}  Ke7 {[%clk 0:00:09]} 48. Ng6+ {[%clk 0:00:23]}  Kd7 {[%clk 0:00:08]} 49. Nf8+ {[%clk 0:00:23]}  Kd6 {[%clk 0:00:07]} 50. Nfxe6 {[%clk 0:00:22]}  Rb2+ {[%clk 0:00:08]} 51. Ka7 {[%clk 0:00:20]}  Bd4+ {[%clk 0:00:08]} 52. Nxd4 {[%clk 0:00:18]}  Kxc7 {[%clk 0:00:08]} 53. Nf5 {[%clk 0:00:18]}  Ra2# {[%clk 0:00:06]} 0-1


[Site "https://www.chess.com"]

[Event "Titled Tuesday Blitz April 05 Early 2022"]
[White "Kezin, Roman"]
[Black "Koellner, Ruben Gideon"]
[WhiteFideId "24124621"]
[BlackFideId "12993093"]
[WhiteElo "2570"]
[BlackElo "2555"]
[Result "1-0"]
[Round "06"]
[TimeControl "180+1"]
[Date "2022.04.05"]
[WhiteClock "0:00:04"]
[BlackClock "0:00:16"]

1. h4 {[%clk 0:02:59]}  h5 {[%clk 0:02:58]} 2. a4 {[%clk 0:02:58]}  a5 {[%clk 0:02:58]} 3. Ra3 {[%clk 0:02:58]}  Ra6 {[%clk 0:02:58]} 4. Rg3 {[%clk 0:02:57]}  Rhh6 {[%clk 0:02:57]} 5. Nf3 {[%clk 0:02:50]}  Nf6 {[%clk 0:02:52]} 6. d4 {[%clk 0:02:48]}  Rh8 {[%clk 0:02:50]} 7. Nc3 {[%clk 0:02:47]}  d5 {[%clk 0:02:49]} 8. Bf4 {[%clk 0:02:46]}  Rb6 {[%clk 0:02:47]} 9. e3 {[%clk 0:02:41]}  Bg4 {[%clk 0:02:40]} 10. Be2 {[%clk 0:02:37]}  e6 {[%clk 0:02:37]} 11. Ne5 {[%clk 0:02:37]}  Bxe2 {[%clk 0:02:26]} 12. Qxe2 {[%clk 0:02:38]}  Rxb2 {[%clk 0:02:21]} 13. O-O {[%clk 0:02:38]}  Nbd7 {[%clk 0:02:17]} 14. Nb5 {[%clk 0:01:52]}  c6 {[%clk 0:02:10]} 15. Nd3 {[%clk 0:01:49]}  Rxb5 {[%clk 0:02:01]} 16. axb5 {[%clk 0:01:49]}  cxb5 {[%clk 0:02:02]} 17. Ne5 {[%clk 0:01:27]}  Ne4 {[%clk 0:01:52]} 18. Qxb5 {[%clk 0:01:27]}  Nxg3 {[%clk 0:01:48]} 19. fxg3 {[%clk 0:01:28]}  f6 {[%clk 0:01:45]} 20. Ng6 {[%clk 0:01:24]}  Rg8 {[%clk 0:01:43]} 21. Qxb7 {[%clk 0:01:22]}  Kf7 {[%clk 0:01:40]} 22. Bc7 {[%clk 0:01:14]}  Qe8 {[%clk 0:01:40]} 23. Nf4 {[%clk 0:01:01]}  a4 {[%clk 0:01:36]} 24. e4 {[%clk 0:00:37]}  dxe4 {[%clk 0:01:28]} 25. Qxe4 {[%clk 0:00:27]}  g6 {[%clk 0:01:28]} 26. d5 {[%clk 0:00:25]}  e5 {[%clk 0:01:26]} 27. Ne6 {[%clk 0:00:24]}  Nc5 {[%clk 0:01:24]} 28. Qxe5 {[%clk 0:00:18]}  Be7 {[%clk 0:01:17]} 29. Kh1 {[%clk 0:00:07]}  Nd7 {[%clk 0:00:53]} 30. Qe3 {[%clk 0:00:06]}  Qc8 {[%clk 0:00:32]} 31. Qh6 {[%clk 0:00:06]}  Bf8 {[%clk 0:00:32]} 32. Qh7+ {[%clk 0:00:05]}  Bg7 {[%clk 0:00:32]} 33. Re1 {[%clk 0:00:03]}  a3 {[%clk 0:00:18]} 34. Bd6 {[%clk 0:00:02]}  Qc3 {[%clk 0:00:17]} 35. Ng5+ {[%clk 0:00:02]}  fxg5 {[%clk 0:00:16]} 36. Re7+ {[%clk 0:00:03]}  Kf6 {[%clk 0:00:17]} 37. Re6+ {[%clk 0:00:02]}  Kf5 {[%clk 0:00:17]} 38. Qxg6+ {[%clk 0:00:03]}  Kg4 {[%clk 0:00:16]} 39. Re4# {[%clk 0:00:04]} 1-0


[Site "https://www.chess.com"]

[Event "Titled Tuesday Blitz April 05 Early 2022"]
[White "Kokoszczynski, Jan"]
[Black "Prohorov, Olexandr"]
[WhiteFideId "1174460"]
[BlackFideId "14105578"]
[WhiteElo "2163"]
[BlackElo "1993"]
[Result "1-0"]
[Round "06"]
[TimeControl "180+1"]
[Date "2022.04.05"]
[WhiteClock "0:00:07"]
[BlackClock "0:00:02"]

1. e4 {[%clk 0:02:59]}  c5 {[%clk 0:02:59]} 2. Nf3 {[%clk 0:02:59]}  d6 {[%clk 0:02:59]} 3. Bb5+ {[%clk 0:02:57]}  Nd7 {[%clk 0:02:59]} 4. d4 {[%clk 0:02:50]}  cxd4 {[%clk 0:02:56]} 5. Qxd4 {[%clk 0:02:51]}  a6 {[%clk 0:02:54]} 6. Bxd7+ {[%clk 0:02:49]}  Bxd7 {[%clk 0:02:53]} 7. Nc3 {[%clk 0:02:49]}  Nf6 {[%clk 0:02:54]} 8. O-O {[%clk 0:02:49]}  Bc6 {[%clk 0:02:37]} 9. Bg5 {[%clk 0:02:40]}  e6 {[%clk 0:02:30]} 10. Rad1 {[%clk 0:02:32]}  Be7 {[%clk 0:02:30]} 11. Rfe1 {[%clk 0:02:26]}  Qc7 {[%clk 0:02:18]} 12. Bh4 {[%clk 0:01:42]}  O-O {[%clk 0:02:12]} 13. Bg3 {[%clk 0:01:40]}  Rad8 {[%clk 0:02:08]} 14. a4 {[%clk 0:01:38]}  Rfe8 {[%clk 0:01:56]} 15. h3 {[%clk 0:01:33]}  Qc8 {[%clk 0:01:50]} 16. Qd3 {[%clk 0:01:23]}  b6 {[%clk 0:01:38]} 17. Nd4 {[%clk 0:01:21]}  Bb7 {[%clk 0:01:35]} 18. Qe3 {[%clk 0:01:10]}  Qc5 {[%clk 0:01:26]} 19. f3 {[%clk 0:01:02]}  Nd7 {[%clk 0:01:20]} 20. Bf2 {[%clk 0:01:02]}  Qc7 {[%clk 0:01:15]} 21. f4 {[%clk 0:00:59]}  Rc8 {[%clk 0:01:06]} 22. h4 {[%clk 0:00:54]}  Nf6 {[%clk 0:00:57]} 23. Qh3 {[%clk 0:00:50]}  Bf8 {[%clk 0:00:56]} 24. h5 {[%clk 0:00:47]}  h6 {[%clk 0:00:54]} 25. g4 {[%clk 0:00:47]}  e5 {[%clk 0:00:38]} 26. g5 {[%clk 0:00:22]}  exd4 {[%clk 0:00:29]} 27. Rxd4 {[%clk 0:00:20]}  hxg5 {[%clk 0:00:21]} 28. fxg5 {[%clk 0:00:21]}  Nh7 {[%clk 0:00:15]} 29. g6 {[%clk 0:00:20]}  fxg6 {[%clk 0:00:11]} 30. hxg6 {[%clk 0:00:20]}  Nf6 {[%clk 0:00:12]} 31. Bh4 {[%clk 0:00:17]}  Qd7 {[%clk 0:00:03]} 32. Qg2 {[%clk 0:00:14]}  Qe6 {[%clk 0:00:03]} 33. Rf1 {[%clk 0:00:13]}  Qg4 {[%clk 0:00:01]} 34. Qxg4 {[%clk 0:00:09]}  Nxg4 {[%clk 0:00:02]} 35. Rf7 {[%clk 0:00:10]}  Be7 {[%clk 0:00:02]} 36. Rxe7 {[%clk 0:00:09]}  Rxe7 {[%clk 0:00:03]} 37. Bxe7 {[%clk 0:00:10]}  d5 {[%clk 0:00:03]} 38. exd5 {[%clk 0:00:10]}  Re8 {[%clk 0:00:03]} 39. d6 {[%clk 0:00:09]}  Nf6 {[%clk 0:00:03]} 40. d7 {[%clk 0:00:09]}  Rxe7 {[%clk 0:00:01]} 41. d8=Q+ {[%clk 0:00:09]}  Re8 {[%clk 0:00:02]} 42. Qd6 {[%clk 0:00:07]} 1-0


[Site "https://www.chess.com"]